bitfinex/quotes_BTCUSD_20240823
["timestamp","ask_amount","ask_price","bid_price","bid_amount"]
[1724422061926,0.2561,61679.0,61666.0,0.16400298]
[1724422062276,0.324269,61678.0,61667.0,0.00324279]
[1724422062487,0.2561,61679.0,61668.0,0.16400298]
[1724422062634,0.02543325,61675.0,61668.0,0.16400298]
[1724422063048,0.162156,61669.0,61668.0,0.16400298]
[1724422063277,0.324288,61674.0,61668.0,0.16400298]
[1724422063456,0.02543325,61675.0,61668.0,0.18040328]
[1724422063660,0.02543325,61675.0,61669.0,0.2535]
[1724422063857,0.02543325,61675.0,61674.0,0.65042998]
[1724422064061,0.02543325,61675.0,61674.0,0.16400298]
[1724422064403,0.02543325,61675.0,61674.0,0.32614498]
[1724422064601,0.02543325,61675.0,61674.0,0.65042998]
[1724422064777,0.02543325,61675.0,61674.0,1.3154809]
[1724422065176,0.02543325,61675.0,61674.0,0.98795378]
[1724422065404,0.02543325,61675.0,61674.0,1.31223878]
[1724422065703,0.0002,61699.0,61697.0,0.162082]
[1724422065904,0.0002,61699.0,61697.0,0.16400298]
[1724422066103,0.0002,61699.0,61697.0,0.20340328]
[1724422066280,0.0002,61699.0,61698.0,0.16400298]
[1724422066646,0.162277,61699.0,61698.0,0.16400298]
[1724422066823,0.324171,61696.0,61686.0,0.2631]
[1724422067062,0.0002,61699.0,61687.0,0.18700298]
[1724422067262,0.0002,61699.0,61688.0,0.0219523]
[1724422067436,0.0002,61699.0,61689.0,0.18700298]
[1724422067637,0.324165,61697.0,61689.0,0.16400298]
[1724422067839,0.162093,61693.0,61689.0,0.16400298]
[1724422068059,0.162085,61696.0,61689.0,0.16400298]
[1724422068226,0.0002,61699.0,61689.0,0.16400298]
[1724422068426,0.0002,61699.0,61690.0,0.00324154]
[1724422068427,0.02542289,61695.0,61690.0,0.00324154]
[1724422068626,0.02542289,61695.0,61691.0,0.16400298]
[1724422069035,0.0002,61699.0,61694.0,0.93688298]
[1724422069260,0.0002,61699.0,61698.0,0.32608198]
[1724422069606,0.0002,61699.0,61698.0,0.67324098]
[1724422069836,0.0002,61699.0,61698.0,1.11315905]
[1724422070040,0.0002,61699.0,61698.0,1.43731805]
[1724422070188,0.0002,61699.0,61698.0,1.11415905]
[1724422070391,0.0002,61699.0,61698.0,0.78575917]
[1724422070568,0.0002,61699.0,61698.0,0.46160017]
[1724422070774,0.0002,61699.0,61698.0,0.78575917]
[1724422071198,0.02542315,61707.0,61706.0,0.486175]
[1724422071402,0.0002,61719.0,61718.0,1.094255]
[1724422071604,0.0002,61719.0,61718.0,1.76971198]
[1724422071814,0.0002,61739.0,61737.0,0.2632]
[1724422072021,0.0002,61739.0,61738.0,0.32597698]
[1724422072384,0.004,61771.0,61738.0,0.32597698]
[1724422072385,0.0747386,61772.0,61758.0,0.599522]
[1724422072592,0.0747386,61772.0,61758.0,1.08836898]
[1724422072795,0.0747386,61772.0,61758.0,0.89536188]
[1724422073008,0.0747386,61772.0,61758.0,0.73343988]
[1724422073273,0.16191,61763.0,61758.0,0.27283988]
[1724422073492,0.0747386,61772.0,61758.0,0.35216265]
[1724422073708,0.4607,61759.0,61758.0,0.16400298]
[1724422073905,0.4607,61759.0,61744.0,0.00323846]
[1724422074187,0.4607,61759.0,61745.0,0.16400298]
[1724422074401,0.4607,61759.0,61748.0,0.16400298]
[1724422074402,0.0002,61759.0,61748.0,0.16400298]
[1724422074644,0.0002,61759.0,61754.0,0.16400298]
[1724422074850,0.0002,61759.0,61755.0,0.16400298]
[1724422075398,0.0002,61759.0,61756.0,0.167241]
[1724422075627,0.0002,61759.0,61756.0,0.16400298]
[1724422076385,0.161938,61752.0,61739.0,0.4448]
[1724422076536,0.2626,61757.0,61745.0,0.16400298]
[1724422076761,0.2626,61757.0,61750.0,0.7]
[1724422076961,0.809702,61751.0,61750.0,0.7]
[1724422077159,1.331083,61751.0,61750.0,0.7]
[1724422077363,1.598283,61751.0,61750.0,0.7]
[1724422077561,1.922164,61751.0,61750.0,0.7]
[1724422077762,1.94756601,61751.0,61750.0,0.7]
[1724422078346,1.94756601,61751.0,61750.0,0.63320619]
[1724422078544,1.94756601,61751.0,61750.0,0.23320619]
[1724422078545,2.54044999,61751.0,61750.0,0.23320619]
[1724422078765,0.810082,61722.0,61721.0,0.49229154]
[1724422078970,0.810082,61722.0,61721.0,0.65629452]
[1724422079211,0.32409,61712.0,61708.0,0.1968]
[1724422079422,0.324081,61713.0,61708.0,0.1968]
[1724422079629,0.324034,61722.0,61709.0,0.16400298]
[1724422079847,0.162048,61710.0,61709.0,0.16400298]
[1724422080760,0.486144,61710.0,61709.0,0.16400298]
[1724422080957,0.2609,61726.0,61709.0,0.16400298]
[1724422081197,0.49229154,61738.0,61709.0,0.16400298]
[1724422081198,0.2509,61734.0,61717.0,0.16400298]
[1724422081395,0.2509,61734.0,61707.0,0.002]
[1724422081396,0.486057,61721.0,61720.0,0.16400298]
[1724422081895,0.2509,61734.0,61706.0,0.2538]
[1724422082147,0.324014,61726.0,61708.0,0.16400298]
[1724422082355,0.2509,61734.0,61721.0,0.16400298]
[1724422082565,0.02541499,61737.0,61729.0,0.16400298]
[1724422082974,0.2621,61750.0,61729.0,0.16724252]
[1724422083149,0.2621,61750.0,61729.0,0.16400298]
[1724422083150,0.161991,61732.0,61729.0,0.16400298]
[1724422083469,0.323947,61739.0,61729.0,0.19692811]
[1724422083674,0.2621,61750.0,61729.0,0.16400298]
[1724422083879,0.161995,61730.0,61729.0,0.16400298]
[1724422084090,0.2621,61750.0,61729.0,0.16400298]
[1724422084295,0.49229154,61748.0,61734.0,0.16400298]
[1724422084435,0.485947,61735.0,61734.0,0.16400298]
[1724422085093,0.51135348,61735.0,61734.0,0.16400298]
[1724422085287,0.29040648,61735.0,61715.0,0.196]
[1724422085461,0.323999,61729.0,61718.0,0.16400298]
[1724422085669,0.29040648,61735.0,61718.0,0.32602798]
[1724422085908,0.162021,61721.0,61718.0,0.16400298]
[1724422086083,0.162016,61723.0,61718.0,0.16400298]
[1724422086282,0.162017,61722.0,61718.0,0.16400298]
[1724422086483,0.324031,61723.0,61718.0,0.16400298]
[1724422086662,0.324022,61725.0,61718.0,0.16400298]
[1724422087064,0.162024,61719.0,61718.0,0.16400298]
[1724422087291,0.486073,61719.0,61718.0,0.16400298]
[1724422087697,0.83553562,61719.0,61718.0,0.16400298]
[1724422088016,0.83553562,61719.0,61701.0,0.1924]
[1724422088017,0.2703,61718.0,61701.0,0.1924]
[1724422088234,0.2703,61718.0,61702.0,0.16400298]
[1724422088462,0.162062,61705.0,61702.0,0.16400298]
[1724422088664,0.2703,61718.0,61702.0,0.16400298]
[1724422088665,0.162066,61703.0,61702.0,0.16400298]
[1724422088837,0.486199,61703.0,61702.0,0.16400298]
[1724422089242,0.34955245,61703.0,61702.0,0.16400298]
[1724422089443,0.02541945,61703.0,61702.0,0.16400298]
[1724422089645,0.51161845,61703.0,61702.0,0.16400298]
[1724422089875,0.83575145,61703.0,61702.0,0.16400298]
[1724422090220,0.18748545,61703.0,61702.0,0.16400298]
[1724422090595,0.02541945,61703.0,61702.0,0.16400298]
[1724422090798,0.18748545,61703.0,61702.0,0.16400298]
[1724422091009,0.02541945,61703.0,61702.0,0.16400298]
[1724422091210,0.02541945,61703.0,61702.0,1.23624828]
[1724422091416,0.162036,61715.0,61702.0,0.73364098]
[1724422091617,0.323951,61738.0,61702.0,0.73364098]
[1724422091618,0.02541908,61717.0,61712.0,0.16400298]
[1724422091935,0.02541908,61717.0,61713.0,0.00324013]
[1724422092159,0.02541908,61717.0,61716.0,0.162032]
[1724422092368,0.161988,61733.0,61726.0,0.162005]
[1724422092571,0.323948,61739.0,61716.0,0.191243]
[1724422092572,0.161939,61752.0,61745.0,0.161955]
[1724422092775,0.324042,61759.0,61747.0,0.16195]
[1724422092954,0.323868,61754.0,61748.0,0.16400298]
[1724422093155,0.0002,61759.0,61748.0,0.16400298]
[1724422093156,0.02540304,61751.0,61748.0,0.16400298]
[1724422093688,0.161945,61749.0,61748.0,0.16400298]
[1724422093893,0.02540304,61751.0,61748.0,0.16400298]
[1724422094339,0.809727,61749.0,61748.0,0.16400298]
[1724422094547,0.161956,61745.0,61732.0,0.2584]
[1724422094741,0.2472,61750.0,61733.0,0.16400298]
[1724422094942,0.161961,61743.0,61735.0,0.161982]
[1724422095165,0.161957,61745.0,61736.0,0.16400298]
[1724422095376,0.0254045,61746.0,61736.0,0.16400298]
[1724422095794,0.0254045,61746.0,61738.0,0.16400298]
[1724422096000,0.0254045,61746.0,61741.0,0.323933]
[1724422096212,0.0254045,61746.0,61742.0,0.16400298]
[1724422096415,0.485884,61743.0,61742.0,0.16400298]
[1724422097249,0.323921,61744.0,61736.0,0.001]
[1724422097488,0.161962,61743.0,61742.0,0.16400298]
[1724422097692,0.2586,61745.0,61742.0,0.16400298]
[1724422097893,0.007,61745.0,61742.0,0.16400298]
[1724422098022,0.007,61745.0,61743.0,0.00323886]
[1724422098227,0.007,61745.0,61744.0,0.16400298]
[1724422098434,0.007,61745.0,61744.0,0.34236228]
[1724422098678,0.007,61745.0,61744.0,1.44539828]
[1724422098879,0.00058656,61762.0,61744.0,0.63360328]
[1724422098880,0.16249856,61762.0,61744.0,0.63360328]
[1724422099080,0.49229154,61757.0,61752.0,0.16400298]
[1724422099280,0.02539971,61756.0,61752.0,0.16400298]
[1724422099482,0.161935,61753.0,61752.0,0.16400298]
[1724422099687,0.161932,61755.0,61752.0,0.16400298]
[1724422099978,0.02539971,61756.0,61753.0,0.00323839]
[1724422100183,0.02539971,61756.0,61755.0,0.16193]
[1724422100384,0.02539971,61756.0,61755.0,0.32593298]
[1724422100586,0.02539971,61756.0,61755.0,0.16400298]
[1724422101015,0.02539971,61756.0,61755.0,0.32593298]
[1724422101251,0.02539971,61756.0,61755.0,0.16400298]
[1724422102363,0.02539971,61756.0,61755.0,0.37472058]
[1724422102538,0.02539971,61756.0,61755.0,0.32593298]
[1724422103077,0.03239971,61756.0,61755.0,0.16500298]
[1724422103285,0.03239971,61756.0,61755.0,0.65079298]
[1724422103494,0.03239971,61756.0,61755.0,0.99765298]
[1724422103694,0.03239971,61756.0,61755.0,1.32151298]
[1724422103955,0.007,61756.0,61755.0,1.71866428]
[1724422104109,0.007,61756.0,61755.0,0.93849298]
[1724422104310,0.007,61756.0,61755.0,0.61463298]
[1724422104500,0.007,61756.0,61755.0,0.93849298]
[1724422104952,0.007,61756.0,61755.0,1.58621298]
[1724422105156,0.02539574,61758.0,61757.0,0.809622]
[1724422105348,0.02539574,61758.0,61757.0,0.99662498]
[1724422105763,0.02539574,61758.0,61757.0,0.34892698]
[1724422106434,0.03039574,61758.0,61757.0,0.32592698]
[1724422106814,0.03039574,61758.0,61757.0,1.49397398]
[1724422107012,0.03039574,61758.0,61757.0,1.51897398]
[1724422107013,0.005,61758.0,61757.0,1.51897398]
[1724422107240,0.03766175,61767.0,61766.0,0.323802]
[1724422107393,0.03766175,61767.0,61766.0,0.92370598]
[1724422107599,0.03766175,61767.0,61766.0,1.57130998]
[1724422107800,0.0122674,61767.0,61766.0,1.24750798]
[1724422108456,0.0122674,61767.0,61766.0,1.57130998]
[1724422108656,0.0122674,61767.0,61766.0,1.72894098]
[1724422109420,0.0122674,61767.0,61766.0,1.95706098]
[1724422109640,0.0122674,61767.0,61766.0,2.05706098]
[1724422110064,0.0132674,61767.0,61766.0,2.06406098]
[1724422110613,0.0122674,61767.0,61766.0,2.05706098]
[1724422110942,0.0122674,61767.0,61766.0,2.39886298]
[1724422112002,0.0122674,61767.0,61766.0,2.07106098]
[1724422112207,0.0122674,61767.0,61766.0,2.05706098]
[1724422112442,0.0122674,61767.0,61766.0,2.07306098]
[1724422112443,0.0132674,61767.0,61766.0,2.07306098]
[1724422112652,0.0132674,61767.0,61766.0,2.07506098]
[1724422112845,0.0132674,61767.0,61766.0,2.39886298]
[1724422113077,0.0122674,61767.0,61766.0,2.06106098]
[1724422113268,0.00861328,61767.0,61766.0,2.07106098]
[1724422113849,0.00761328,61767.0,61766.0,2.38086298]
[1724422114049,0.089,61784.0,61771.0,1.134216]
[1724422114230,0.089,61784.0,61771.0,1.74349776]
[1724422114410,0.089,61784.0,61771.0,1.77601776]
[1724422114615,0.089,61784.0,61771.0,1.77501776]
[1724422114820,0.089,61784.0,61771.0,1.77801776]
[1724422115021,0.089,61784.0,61771.0,1.97831776]
[1724422115228,0.089,61784.0,61771.0,1.97431776]
[1724422115619,0.089,61784.0,61771.0,1.97631776]
[1724422115883,0.089,61784.0,61771.0,2.30209376]
[1724422116107,0.089,61784.0,61771.0,1.97831776]
[1724422116315,0.089,61784.0,61771.0,2.30209376]
[1724422116520,0.0757386,61772.0,61771.0,2.31609376]
[1724422116721,0.0757386,61772.0,61771.0,1.99231776]
[1724422116871,0.0757386,61772.0,61771.0,2.00019323]
[1724422117079,0.04056094,61772.0,61771.0,1.98619323]
[1724422117285,0.089,61784.0,61775.0,1.461897]
[1724422117513,0.089,61784.0,61775.0,1.78351108]
[1724422118093,0.089,61784.0,61775.0,1.77951108]
[1724422118920,0.089,61784.0,61775.0,1.73325608]
[1724422119369,0.11438415,61784.0,61775.0,1.71025608]
[1724422119568,0.11438415,61784.0,61775.0,1.71225608]
[1724422119768,0.09,61776.0,61775.0,1.91485608]
[1724422120207,0.09,61776.0,61775.0,2.23861108]
[1724422120413,0.089,61776.0,61775.0,2.32461108]
[1724422120606,0.09,61776.0,61775.0,2.00885608]
[1724422120805,0.09,61776.0,61775.0,2.03185608]
[1724422120982,0.09,61776.0,61775.0,0.43787998]
[1724422121212,0.09,61776.0,61775.0,0.33787998]
[1724422121402,0.09,61776.0,61775.0,0.17600298]
[1724422121560,0.09,61776.0,61775.0,0.66163498]
[1724422121769,0.09,61776.0,61775.0,0.33787998]
[1724422121961,0.089,61776.0,61775.0,0.16400298]
[1724422122167,0.089,61776.0,61775.0,0.014]
[1724422122168,0.87525842,61776.0,61775.0,0.014]
[1724422122420,0.3468,61776.0,61775.0,0.17800298]
[1724422122593,0.251875,61776.0,61775.0,0.17800298]
[1724422122771,0.089,61776.0,61775.0,0.16400298]
[1724422123237,0.089,61776.0,61775.0,0.32587998]
[1724422123637,0.089,61776.0,61775.0,0.98538998]
[1724422123638,0.09,61776.0,61775.0,0.98538998]
[1724422123844,0.09,61776.0,61775.0,1.30027269]
[1724422123995,0.09,61776.0,61775.0,1.62302769]
[1724422124204,0.09,61776.0,61775.0,1.62202769]
[1724422124420,0.09,61776.0,61775.0,1.62502769]
[1724422124754,0.09,61776.0,61775.0,2.23978309]
[1724422124965,0.09,61776.0,61775.0,2.24178309]
[1724422125160,0.089,61776.0,61775.0,2.22978309]
[1724422125606,0.094,61776.0,61775.0,2.22978309]
[1724422126505,0.089,61776.0,61775.0,2.22978309]
[1724422126879,0.089,61776.0,61775.0,2.23178309]
[1724422127089,0.06675,61788.0,61787.0,0.443346]
[1724422127247,0.00023,61804.0,61803.0,0.324608]
[1724422127452,0.00023,61804.0,61803.0,1.74367681]
[1724422127855,0.00023,61804.0,61803.0,1.41906881]
[1724422128062,0.00023,61804.0,61794.0,0.4573]
[1724422128269,0.2493825,61811.0,61803.0,0.16400298]
[1724422128475,0.2609,61810.0,61803.0,0.16400298]
[1724422128684,0.2609,61804.0,61784.0,0.323707]
[1724422128881,0.2609,61804.0,61795.0,0.16400298]
[1724422129085,0.2609,61804.0,61803.0,0.161804]
[1724422129326,0.1918,61809.0,61803.0,0.16400298]
[1724422129500,0.1918,61809.0,61804.0,0.16400298]
[1724422129703,0.161793,61808.0,61804.0,0.16400298]
[1724422129940,0.2522,61810.0,61804.0,0.16400298]
[1724422130175,0.161799,61805.0,61804.0,0.16400298]
[1724422130379,0.161814,61800.0,61795.0,0.001]
[1724422130585,0.161818,61798.0,61796.0,0.16400298]
[1724422130784,0.161818,61798.0,61795.0,0.001]
[1724422130785,0.2522,61810.0,61795.0,0.001]
[1724422130929,0.4487825,61811.0,61795.0,0.001]
[1724422130930,0.2686,61796.0,61795.0,0.001]
[1724422131354,0.4457825,61811.0,61793.0,0.323657]
[1724422131355,0.323582,61809.0,61793.0,0.323657]
[1724422131554,0.2628,61810.0,61794.0,0.61328457]
[1724422131555,0.161795,61807.0,61794.0,0.61328457]
[1724422131730,0.008,61808.0,61804.0,0.001]
[1724422131928,0.008,61808.0,61805.0,0.161798]
[1724422132132,0.008,61808.0,61806.0,0.16400298]
[1724422132338,0.2493825,61811.0,61808.0,0.16179]
[1724422132580,0.2493825,61811.0,61809.0,0.16400298]
[1724422133297,0.2493825,61811.0,61810.0,0.485358]
[1724422133412,0.2493825,61811.0,61810.0,1.29650498]
[1724422133607,0.2493825,61811.0,61810.0,1.46048376]
[1724422134460,0.2493825,61811.0,61810.0,1.13691176]
[1724422134673,0.2493825,61811.0,61810.0,0.64936098]
[1724422134908,0.2493825,61811.0,61810.0,0.16400298]
[1724422135053,0.2573825,61811.0,61810.0,0.16400298]
[1724422135281,0.2573825,61811.0,61810.0,0.32578898]
[1724422135503,0.2573825,61811.0,61810.0,0.16400298]
[1724422135705,0.2493825,61811.0,61810.0,0.24522248]
[1724422135908,0.2493825,61811.0,61810.0,0.41200848]
[1724422136339,0.2493825,61811.0,61810.0,0.16400298]
[1724422136340,0.5032825,61811.0,61810.0,0.16400298]
[1724422136850,0.52865809,61811.0,61810.0,0.16900298]
[1724422137166,0.27475809,61811.0,61810.0,0.16900298]
[1724422137314,0.27475809,61811.0,61810.0,0.33078898]
[1724422137519,0.27475809,61811.0,61810.0,0.16900298]
[1724422137908,0.27475809,61811.0,61810.0,0.16400298]
[1724422138319,0.76010809,61811.0,61810.0,0.16700298]
[1724422138730,0.27475809,61811.0,61810.0,0.16700298]
[1724422138934,0.26975809,61811.0,61810.0,0.32578898]
[1724422139251,0.26975809,61811.0,61810.0,0.16700298]
[1724422139610,0.26975809,61811.0,61810.0,1.00383295]
[1724422139814,0.13551705,61811.0,61810.0,1.60929083]
[1724422140173,0.13551705,61811.0,61810.0,1.93564428]
[1724422140369,0.13551705,61811.0,61810.0,1.96516428]
[1724422140608,0.13551705,61811.0,61810.0,1.93264428]
[1724422140816,0.13551705,61811.0,61810.0,1.95864428]
[1724422140957,0.13551705,61811.0,61810.0,2.0112563]
[1724422141158,0.13551705,61811.0,61810.0,2.7915283]
[1724422141360,0.49229154,61855.0,61828.0,0.161739]
[1724422141583,0.49229154,61855.0,61828.0,0.43229626]
[1724422141787,0.49229154,61855.0,61828.0,0.69801388]
[1724422141788,0.20011498,61842.0,61828.0,0.69801388]
[1724422142000,0.161911,61839.0,61828.0,0.39654273]
[1724422142204,0.2787674,61829.0,61828.0,0.16400298]
[1724422142419,0.0123674,61829.0,61828.0,0.16400298]
[1724422142720,0.0073674,61829.0,61828.0,0.16400298]
[1724422143351,0.0083174,61829.0,61828.0,0.17800298]
[1724422143586,0.7600254,61829.0,61828.0,0.17800298]
[1724422143896,1.2744974,61829.0,61828.0,0.014]
[1724422144377,0.9510254,61829.0,61828.0,0.014]
[1724422144605,1.2744974,61829.0,61828.0,0.014]
[1724422144853,1.62334108,61829.0,61828.0,0.014]
[1724422145126,0.49018908,61829.0,61813.0,0.0032349]
[1724422145341,0.49018908,61829.0,61819.0,0.16400298]
[1724422145575,0.03268908,61829.0,61828.0,0.001]
[1724422145819,0.03268908,61829.0,61828.0,0.16500298]
[1724422146040,0.03268908,61829.0,61828.0,0.16400298]
[1724422146041,0.19442508,61829.0,61828.0,0.16400298]
[1724422146269,0.19942508,61829.0,61828.0,0.16400298]
[1724422146521,0.03768908,61829.0,61828.0,0.16400298]
[1724422146778,0.03268908,61829.0,61828.0,0.16400298]
[1724422147292,0.03268908,61829.0,61814.0,0.03252]
[1724422147293,0.323486,61827.0,61814.0,0.03252]
[1724422147522,0.49288908,61829.0,61816.0,0.16400298]
[1724422147523,0.161748,61825.0,61816.0,0.16400298]
[1724422147785,0.161748,61825.0,61804.0,0.20278694]
[1724422147786,0.49229154,61824.0,61817.0,0.16400298]
[1724422148021,0.2681,61828.0,61817.0,0.16400298]
[1724422148257,0.2681,61828.0,61817.0,0.18040328]
[1724422148491,0.16178,61813.0,61803.0,0.27821846]
[1724422148701,0.161771,61816.0,61808.0,0.161789]
[1724422148915,0.161781,61812.0,61809.0,0.16400298]
[1724422149211,0.161781,61812.0,61788.0,0.2714]
[1724422149212,0.184,61811.0,61788.0,0.2714]
[1724422149418,0.184,61811.0,61786.0,0.1967]
[1724422149419,0.323599,61805.0,61790.0,0.65629452]
[1724422149521,0.161816,61799.0,61792.0,0.161831]
[1724422149727,0.161813,61800.0,61793.0,0.32583198]
[1724422149946,0.184,61811.0,61786.0,0.2042568]
[1724422149947,0.184,61811.0,61795.0,0.16400298]
[1724422150176,0.184,61811.0,61794.0,0.00323618]
[1724422150177,0.161782,61812.0,61805.0,0.161796]
[1724422150393,0.02537828,61808.0,61806.0,0.16400298]
[1724422150947,0.02537828,61808.0,61807.0,0.16400298]
[1724422151103,0.53306028,61808.0,61807.0,0.16400298]
[1724422151303,0.53306028,61808.0,61785.0,0.001]
[1724422151304,0.20947828,61808.0,61802.0,0.161804]
[1724422151527,0.20947828,61808.0,61803.0,0.16400298]
[1724422151729,0.20947828,61808.0,61795.0,0.161824]
[1724422151980,0.2766,61806.0,61796.0,0.16400298]
[1724422152180,0.48546,61797.0,61796.0,0.16400298]
[1724422152558,0.2766,61806.0,61780.0,0.03252]
[1724422152559,0.323629,61800.0,61780.0,0.03252]
[1724422152847,0.2751,61799.0,61781.0,0.16400298]
[1724422153079,0.161847,61787.0,61781.0,0.16400298]
[1724422153295,0.16184,61790.0,61782.0,0.0649606]
[1724422153506,0.16185,61786.0,61783.0,0.16400298]
[1724422153656,0.323676,61790.0,61783.0,0.16400298]
[1724422153875,0.161852,61785.0,61783.0,0.16400298]
[1724422154085,0.02538501,61789.0,61783.0,0.16400298]
[1724422154293,0.02538501,61789.0,61783.0,0.32585798]
[1724422154503,0.34906701,61789.0,61783.0,0.22896158]
[1724422154674,0.161844,61788.0,61783.0,0.22896158]
[1724422154880,0.02538501,61789.0,61785.0,0.16185]
[1724422155075,0.003,61787.0,61786.0,0.16400298]
[1724422155529,0.02538501,61789.0,61786.0,0.16400298]
[1724422155739,0.02538501,61789.0,61788.0,1.24991998]
[1724422156138,0.02538501,61789.0,61788.0,1.76870698]
[1724422156336,0.02538501,61789.0,61788.0,1.95568576]
[1724422156556,0.0119,61805.0,61804.0,0.161801]
[1724422156786,0.0119,61805.0,61804.0,0.9288427]
[1724422156991,0.0119,61805.0,61804.0,1.7698487]
[1724422157205,0.0119,61805.0,61804.0,1.76561298]
[1724422157428,0.0119,61805.0,61804.0,1.93059176]
[1724422157925,0.001,61832.0,61828.0,0.161739]
[1724422158126,0.00673341,61829.0,61828.0,0.64921998]
[1724422158331,0.00673341,61829.0,61828.0,0.97269798]
[1724422158649,0.00673341,61829.0,61828.0,0.76639456]
[1724422158822,0.00673341,61829.0,61828.0,1.08987256]
[1724422159250,0.00673341,61829.0,61828.0,1.69155056]
[1724422159455,0.00673341,61829.0,61828.0,1.68855056]
[1724422159665,0.00673341,61829.0,61828.0,1.36507256]
[1724422159894,0.00673341,61829.0,61828.0,1.37007256]
[1724422160992,0.00673341,61829.0,61828.0,0.65421998]
[1724422161134,0.00673341,61829.0,61828.0,0.16900298]
[1724422161336,0.00673341,61829.0,61828.0,0.64921998]
[1724422161541,0.16846941,61829.0,61821.0,0.161757]
[1724422161789,0.16946941,61829.0,61828.0,0.01]
[1724422161956,0.49294141,61829.0,61828.0,0.01]
[1724422162155,0.00673341,61829.0,61821.0,0.16400298]
[1724422162362,0.03210271,61829.0,61821.0,0.16400298]
[1724422162560,0.03310271,61829.0,61828.0,0.01]
[1724422162915,0.03310271,61829.0,61828.0,0.65921998]
[1724422163030,0.03210271,61829.0,61828.0,0.64921998]
[1724422163234,0.03210271,61829.0,61828.0,0.32574198]
[1724422163524,0.04510271,61829.0,61828.0,0.32674198]
[1724422163653,0.04510271,61829.0,61828.0,0.97369798]
[1724422163856,0.04510271,61829.0,61828.0,1.29717598]
[1724422164058,0.04510271,61829.0,61828.0,1.62065398]
[1724422164307,0.04510271,61829.0,61828.0,1.29817598]
[1724422164468,0.04510271,61829.0,61828.0,1.46415476]
[1724422164865,0.02959865,61829.0,61828.0,1.46415476]
[1724422165092,0.02959865,61829.0,61828.0,1.48715476]
[1724422165292,0.00039708,61830.0,61829.0,1.135152]
[1724422165469,0.00039708,61830.0,61829.0,1.32315498]
[1724422165667,0.00039708,61830.0,61829.0,2.12300126]
[1724422165868,0.00039708,61830.0,61829.0,2.11800126]
[1724422166075,0.00039708,61830.0,61829.0,1.67152926]
[1724422166317,0.00039708,61830.0,61829.0,1.07345726]
[1724422166632,0.00039708,61830.0,61829.0,1.39992926]
[1724422166839,0.00039708,61830.0,61829.0,1.39692926]
[1724422167040,0.00039708,61830.0,61829.0,1.07345726]
[1724422167240,0.00139708,61830.0,61829.0,1.08945726]
[1724422167438,0.00139708,61830.0,61829.0,1.41292926]
[1724422167661,0.00139708,61830.0,61829.0,1.67892926]
[1724422167977,0.00139708,61830.0,61829.0,1.68092926]
[1724422168185,0.00139708,61830.0,61829.0,2.00440126]
[1724422168373,0.00139708,61830.0,61829.0,2.02740126]
[1724422168685,0.00039708,61830.0,61829.0,2.01440126]
[1724422168817,0.00139708,61830.0,61829.0,1.79892926]
[1724422169362,0.00039708,61830.0,61829.0,1.23868298]
[1724422169867,0.00139708,61830.0,61829.0,0.98968298]
[1724422170189,0.00139708,61830.0,61829.0,1.31015498]
[1724422170398,0.00039708,61830.0,61829.0,1.29715498]
[1724422170695,0.00039708,61830.0,61829.0,1.29615498]
[1724422170927,0.00039708,61830.0,61829.0,1.48413376]
[1724422171104,0.00039708,61830.0,61829.0,1.48813376]
[1724422171333,0.00039708,61830.0,61829.0,1.81160576]
[1724422171533,0.00039708,61830.0,61829.0,2.09637309]
[1724422171644,0.00139708,61830.0,61829.0,2.10637309]
[1724422171863,0.00139708,61830.0,61829.0,2.10237309]
[1724422172062,0.00039708,61830.0,61829.0,2.36017309]
[1724422172466,0.00139708,61830.0,61829.0,2.35217309]
[1724422172689,0.00139708,61830.0,61829.0,2.35417309]
[1724422172912,0.00139708,61830.0,61829.0,2.35117309]
[1724422173123,0.00039708,61830.0,61829.0,2.33717309]
[1724422173498,0.00039708,61830.0,61829.0,2.01370109]
[1724422173966,0.00139708,61830.0,61829.0,2.02770109]
[1724422174172,0.00139708,61830.0,61829.0,1.75890109]
[1724422174494,0.00139708,61830.0,61829.0,1.75990109]
[1724422174693,0.00139708,61830.0,61829.0,2.08337309]
[1724422175093,0.00039708,61830.0,61829.0,2.07137309]
[1724422175569,0.00139708,61830.0,61829.0,2.08737309]
[1724422175727,0.00139708,61830.0,61829.0,2.14289309]
[1724422175920,0.00039708,61830.0,61829.0,2.45236509]
[1724422176119,0.00039708,61830.0,61829.0,2.70936509]
[1724422176359,0.00139708,61830.0,61829.0,2.72336509]
[1724422176718,0.00139708,61830.0,61829.0,2.37189309]
[1724422177082,0.00039708,61830.0,61829.0,2.03442109]
[1724422177292,0.00139708,61830.0,61829.0,1.79142109]
[1724422178341,0.00139708,61830.0,61829.0,2.11489309]
[1724422178561,0.00039708,61830.0,61829.0,2.10189309]
[1724422178762,0.00039708,61830.0,61829.0,2.10389309]
[1724422178978,0.00134708,61830.0,61829.0,2.46436509]
[1724422179120,0.00134708,61830.0,61829.0,1.18318176]
[1724422179514,0.00039537,61845.0,61841.0,1.136935]
[1724422179712,0.00039537,61845.0,61841.0,1.75393148]
[1724422180007,0.00039537,61845.0,61841.0,1.77593148]
[1724422180372,0.00039537,61845.0,61841.0,2.03743148]
[1724422180771,0.00039537,61845.0,61841.0,2.04143148]
[1724422180971,0.00039537,61845.0,61841.0,1.78093148]
[1724422181224,0.00039537,61845.0,61841.0,1.75393148]
[1724422181423,0.00039537,61845.0,61841.0,2.10434148]
[1724422181622,0.3244489,61850.0,61849.0,0.166684]
[1724422181833,0.3244489,61850.0,61849.0,0.77657731]
[1724422182062,0.3244489,61850.0,61849.0,2.02778131]
[1724422182859,0.23412716,61850.0,61849.0,2.02778131]
[1724422183064,0.22425922,61850.0,61849.0,2.04178131]
[1724422183464,0.22425922,61850.0,61849.0,2.02778131]
[1724422183689,0.22425922,61850.0,61849.0,1.69941331]
[1724422183895,0.22425922,61850.0,61849.0,1.71441331]
[1724422184095,0.22425922,61850.0,61849.0,1.71341331]
[1724422184514,0.22425922,61850.0,61849.0,1.71641331]
[1724422184703,0.22425922,61850.0,61849.0,1.71341331]
[1724422185063,0.22425922,61850.0,61849.0,1.35304531]
[1724422185427,0.22425922,61850.0,61849.0,1.69141331]
[1724422185637,0.22425922,61850.0,61849.0,1.69341331]
[1724422185833,0.22425922,61850.0,61849.0,1.35304531]
[1724422186238,0.22425922,61850.0,61849.0,1.69041331]
[1724422186440,0.22425922,61850.0,61849.0,1.37004531]
[1724422186830,0.22425922,61850.0,61849.0,1.67941331]